bitfinex-derivatives/quotes_BTCF0:USTF0_20241021
["timestamp","ask_amount","ask_price","bid_price","bid_amount"]
[1729518165916,0.07405,67545.0,67544.0,0.22278818]
[1729518166206,0.07405,67545.0,67543.0,0.22278818]
[1729518166510,0.3618,67567.0,67544.0,0.22174575]
[1729518166696,0.3618,67567.0,67543.0,0.44416]
[1729518166697,0.3608,67567.0,67548.0,0.3608]
[1729518166897,0.074028,67566.0,67552.0,0.074041]
[1729518167215,0.074045,67550.0,67549.0,0.22174575]
[1729518167413,0.07405,67545.0,67544.0,0.014]
[1729518167604,0.43485,67545.0,67544.0,0.014]
[1729518168197,0.43585,67545.0,67544.0,0.027]
[1729518168609,0.001,67545.0,67544.0,0.69361987]
[1729518168906,0.001,67545.0,67544.0,0.75367087]
[1729518169111,0.001,67545.0,67544.0,0.76667087]
[1729518169614,0.07505,67545.0,67544.0,0.76667087]
[1729518169806,0.07505,67545.0,67544.0,0.75367087]
[1729518170008,0.07605,67545.0,67544.0,0.76667087]
[1729518170707,0.07605,67545.0,67544.0,0.026]
[1729518173814,0.002,67545.0,67544.0,0.026]
[1729518174005,0.3608,67556.0,67546.0,0.074048]
[1729518174219,0.07405,67545.0,67544.0,0.026]
[1729518175009,0.07405,67545.0,67544.0,0.013]
[1729518176113,0.07505,67545.0,67544.0,0.026]
[1729518178719,0.07505,67545.0,67544.0,0.24704617]
[1729518179020,0.07505,67545.0,67544.0,0.026]
[1729518179409,0.074065,67531.0,67530.0,0.36026137]
[1729518179610,0.074065,67531.0,67530.0,0.00222137]
[1729518179817,0.074098,67501.0,67500.0,9.84689149]
[1729518180026,0.074098,67501.0,67500.0,8.93116849]
[1729518180027,0.795698,67501.0,67500.0,8.93116849]
[1729518180228,0.795698,67501.0,67500.0,8.56816706]
[1729518180229,1.240138,67501.0,67500.0,8.56816706]
[1729518180430,1.63257223,67501.0,67500.0,4.91783042]
[1729518180632,1.63257223,67501.0,67500.0,3.66712842]
[1729518180633,1.93267023,67501.0,67500.0,3.66712842]
[1729518180922,2.15111023,67501.0,67500.0,3.44596642]
[1729518181136,1.93267023,67501.0,67500.0,3.18133395]
[1729518181317,1.41413223,67501.0,67500.0,2.76342095]
[1729518181513,1.41413223,67501.0,67500.0,2.65170095]
[1729518181713,0.81413223,67501.0,67500.0,2.65170095]
[1729518181922,1.41413223,67501.0,67500.0,2.56059795]
[1729518182131,0.798698,67501.0,67500.0,2.56059795]
[1729518182921,0.807698,67501.0,67500.0,0.26149001]
[1729518183231,0.807698,67501.0,67500.0,1.59495851]
[1729518183621,0.7336,67501.0,67500.0,1.59495851]
[1729518184343,0.7336,67501.0,67500.0,0.26149001]
[1729518185422,0.3728,67501.0,67500.0,2.19495851]
[1729518185820,0.446898,67501.0,67500.0,2.19495851]
[1729518186025,0.3728,67501.0,67500.0,2.19495851]
[1729518186426,0.07409,67509.0,67500.0,2.49260244]
[1729518186616,0.074087,67511.0,67510.0,1.3334685]
[1729518187314,0.074087,67511.0,67510.0,1.9334685]
[1729518187525,0.36302412,67515.0,67510.0,2.0075565]
[1729518187726,0.36302412,67515.0,67510.0,0.6]
[1729518187939,0.43710712,67515.0,67514.0,1.3334685]
[1729518188427,0.087087,67511.0,67510.0,0.0018]
[1729518188627,0.087087,67511.0,67510.0,1.3344685]
[1729518189017,0.074087,67511.0,67510.0,1.3334685]
[1729518189426,0.39002412,67515.0,67510.0,1.3334685]
[1729518189724,0.36302412,67515.0,67514.0,1.3334685]
[1729518189928,0.43710712,67515.0,67514.0,1.3334685]
[1729518190439,0.43710712,67515.0,67500.0,0.26149001]
[1729518190440,0.074087,67511.0,67500.0,0.26149001]
[1729518190624,0.795698,67501.0,67500.0,0.26149001]
[1729518192034,0.434898,67501.0,67500.0,0.26149001]
[1729518192218,0.441898,67501.0,67500.0,0.26249001]
[1729518192424,0.444898,67501.0,67500.0,0.26249001]
[1729518193114,0.444898,67501.0,67500.0,0.26149001]
[1729518193115,0.437898,67501.0,67500.0,0.26149001]
[1729518193317,0.802698,67501.0,67500.0,0.26149001]
[1729518193519,0.074091,67509.0,67505.0,0.074094]
[1729518193721,0.074088,67511.0,67510.0,1.3334685]
[1729518194029,0.074088,67511.0,67510.0,0.6]
[1729518194331,0.074088,67511.0,67510.0,1.9334685]
[1729518194630,0.00222327,67515.0,67510.0,1.9334685]
[1729518194832,0.074087,67511.0,67510.0,1.3334685]
[1729518195036,0.07409,67509.0,67508.0,0.3608]
[1729518195329,0.074098,67501.0,67500.0,0.62305001]
[1729518195530,0.074098,67501.0,67500.0,1.22229001]
[1729518195716,0.074079,67519.0,67501.0,0.074098]
[1729518195717,0.074096,67503.0,67501.0,0.074098]
[1729518195919,0.001,67511.0,67500.0,1.22305001]
[1729518196132,0.001,67511.0,67508.0,0.001]
[1729518196336,0.075087,67511.0,67510.0,1.3334685]
[1729518196827,0.075087,67511.0,67508.0,0.001]
[1729518196828,0.3618,67511.0,67508.0,0.001]
[1729518197031,0.07409,67509.0,67508.0,0.001]
[1729518197225,0.07409,67509.0,67508.0,1.3344685]
[1729518197421,0.07409,67509.0,67508.0,0.001]
[1729518197622,0.074098,67501.0,67500.0,0.26149001]
[1729518197821,0.074098,67501.0,67500.0,0.86449001]
[1729518198123,0.001,67511.0,67500.0,2.41916656]
[1729518198320,0.075087,67511.0,67510.0,1.6942685]
[1729518198733,0.00222285,67523.0,67510.0,1.9334685]
[1729518198936,0.074078,67520.0,67519.0,1.3334685]
[1729518201135,0.085078,67520.0,67519.0,1.3344685]
[1729518201749,0.074097,67502.0,67499.0,0.3608]
[1729518202031,0.086078,67520.0,67519.0,1.2493135]
[1729518202238,0.086078,67520.0,67513.0,0.3608]
[1729518202447,0.074084,67514.0,67513.0,0.3608]
[1729518202737,0.074084,67514.0,67509.0,0.3608]
[1729518202738,0.074089,67510.0,67509.0,0.3608]
[1729518203237,0.074089,67510.0,67509.0,2.2101135]
[1729518203631,0.011,67520.0,67509.0,2.2101135]
[1729518203839,0.011,67520.0,67519.0,1.6841925]
[1729518204032,0.3608,67535.0,67529.0,1.2493135]
[1729518204339,0.074067,67530.0,67529.0,0.3608]
[1729518204537,0.074067,67530.0,67529.0,0.886733]
[1729518204834,0.074067,67530.0,67529.0,2.1360465]
[1729518205327,0.074067,67530.0,67529.0,1.6111135]
[1729518205526,0.074067,67530.0,67529.0,1.6121135]
[1729518205527,0.086067,67530.0,67529.0,1.6121135]
[1729518206026,0.092067,67530.0,67529.0,1.6121135]
[1729518207139,0.092067,67530.0,67529.0,0.002]
[1729518207440,0.086067,67530.0,67529.0,0.001]
[1729518207825,0.074067,67530.0,67529.0,1.2493135]
[1729518208021,0.078067,67530.0,67529.0,1.2493135]
[1729518208830,0.075067,67530.0,67529.0,1.2493135]
[1729518209231,0.075067,67530.0,67529.0,1.7752465]
[1729518209429,0.075067,67530.0,67529.0,1.2493135]
[1729518209642,0.074067,67530.0,67529.0,1.2493135]
[1729518210439,0.077067,67530.0,67529.0,1.2493135]
[1729518211048,0.077067,67530.0,67529.0,1.2503135]
[1729518211232,0.080067,67530.0,67529.0,1.2503135]
[1729518211827,0.080067,67530.0,67529.0,1.7762465]
[1729518212144,0.3608,67549.0,67529.0,1.7762465]
[1729518212145,0.074056,67540.0,67536.0,0.07406]
[1729518212335,0.074056,67540.0,67539.0,0.3608]
[1729518212639,0.074056,67540.0,67539.0,1.6101135]
[1729518212941,0.074056,67540.0,67539.0,2.1360465]
[1729518213126,0.074056,67540.0,67539.0,1.6101135]
[1729518213829,0.074056,67540.0,67539.0,1.2493135]
[1729518214030,0.074056,67540.0,67539.0,1.7752465]
[1729518214440,0.074056,67540.0,67539.0,1.7762465]
[1729518214836,0.075056,67540.0,67539.0,1.7762465]
[1729518215440,0.075056,67540.0,67539.0,1.7772465]
[1729518216139,0.075056,67540.0,67539.0,1.7782465]
[1729518217137,0.074056,67540.0,67539.0,1.7782465]
[1729518217845,0.074056,67540.0,67539.0,1.7772465]
[1729518218238,0.075056,67540.0,67539.0,1.7772465]
[1729518219035,0.075056,67540.0,67539.0,0.65911615]
[1729518219342,0.074048,67548.0,67546.0,0.074049]
[1729518219546,0.074039,67555.0,67547.0,0.3608]
[1729518219854,0.00222116,67556.0,67555.0,0.074039]
[1729518220347,0.00222116,67556.0,67555.0,0.29831615]
[1729518220653,0.00222116,67556.0,67544.0,0.22044]
[1729518220654,0.07405,67545.0,67544.0,0.3608]
[1729518220850,0.11032347,67545.0,67544.0,0.65911615]
[1729518222234,0.15579762,67545.0,67544.0,0.65911615]
[1729518222440,0.08174871,67545.0,67528.0,0.3608]
[1729518222741,0.074071,67526.0,67525.0,0.00222161]
[1729518222943,0.03627347,67526.0,67525.0,0.66133776]
[1729518223139,0.074071,67526.0,67525.0,0.66133776]
[1729518223341,0.074066,67531.0,67525.0,0.66133776]
[1729518223534,0.074071,67527.0,67525.0,0.66133776]
[1729518223735,0.08177351,67526.0,67525.0,0.73540976]
[1729518224133,0.074047,67548.0,67525.0,0.88323132]
[1729518224338,0.074058,67538.0,67537.0,0.3608]
[1729518224550,0.074058,67538.0,67525.0,0.88323132]
[1729518224551,0.074063,67534.0,67531.0,0.3608]
[1729518224752,0.3789984,67546.0,67531.0,0.3608]
[1729518225048,0.074064,67533.0,67531.0,0.65911615]
[1729518225258,0.074064,67533.0,67531.0,0.73318115]
[1729518225844,0.074064,67532.0,67531.0,0.65911615]
[1729518226249,0.074064,67532.0,67531.0,0.29831615]
[1729518226559,0.074064,67532.0,67531.0,0.31231615]
[1729518227052,0.074071,67526.0,67525.0,0.00222161]
[1729518227248,0.074071,67526.0,67525.0,0.30053776]
[1729518228342,0.001,67532.0,67525.0,0.30053776]
[1729518228545,0.01923487,67532.0,67525.0,0.73540976]
[1729518229059,0.001,67526.0,67525.0,0.74940876]
[1729518229459,0.075071,67526.0,67525.0,0.67533776]
[1729518229753,0.074071,67526.0,67525.0,0.67533776]
[1729518230056,0.075071,67526.0,67525.0,0.61549124]
[1729518230249,0.076071,67526.0,67525.0,0.61549124]
[1729518231841,0.076071,67526.0,67525.0,0.3888]
[1729518233144,0.076071,67526.0,67525.0,0.31495348]
[1729518234963,0.11236078,67526.0,67525.0,0.31495348]
[1729518235351,0.03828978,67526.0,67525.0,0.61571672]
[1729518235559,0.002,67526.0,67525.0,0.52112086]
[1729518235759,0.12155699,67526.0,67525.0,0.52112086]
[1729518235959,0.03828978,67526.0,67525.0,0.52112086]
[1729518236165,0.03828978,67526.0,67525.0,0.44727434]
[1729518236355,0.002,67526.0,67525.0,0.44727434]
[1729518236546,0.3608,67546.0,67525.0,0.36785174]
[1729518236753,0.074055,67541.0,67539.0,0.074056]
[1729518236952,0.074056,67540.0,67539.0,0.09177604]
[1729518237360,0.074056,67540.0,67539.0,0.16583304]
[1729518238263,0.003,67540.0,67539.0,0.16583304]
[1729518238470,0.36302183,67559.0,67539.0,0.83408752]
[1729518238659,0.07404,67555.0,67546.0,0.3608]
[1729518238850,0.07404,67555.0,67554.0,0.07404]
[1729518239266,0.36302183,67559.0,67554.0,0.09177604]
[1729518239468,0.074039,67555.0,67554.0,0.09177604]
[1729518239860,0.03332744,67559.0,67546.0,0.3608]
[1729518240065,0.03332744,67559.0,67546.0,0.45357604]
[1729518240066,0.012,67555.0,67546.0,0.45357604]
[1729518240252,0.074041,67554.0,67546.0,0.45357604]
[1729518240451,0.012,67555.0,67553.0,0.074041]
[1729518240757,0.012,67555.0,67554.0,0.43484]
[1729518241060,0.012,67555.0,67554.0,0.43584]
[1729518241266,0.012,67555.0,67554.0,0.52761604]
[1729518241801,0.013,67559.0,67558.0,0.074036]
[1729518242067,0.214414,67578.0,67566.0,0.074027]
[1729518242369,0.074024,67569.0,67568.0,0.29170552]
[1729518242661,0.074024,67569.0,67568.0,0.28695348]
[1729518242866,0.074024,67569.0,67568.0,0.00475204]
[1729518243565,0.02042968,67574.0,67572.0,0.07402]
[1729518243761,0.02042968,67574.0,67568.0,0.00475204]
[1729518243762,0.074019,67573.0,67568.0,0.07877604]
[1729518244062,0.074022,67571.0,67568.0,0.07977604]
[1729518244263,0.01820852,67574.0,67570.0,0.074022]
[1729518244461,0.074022,67571.0,67570.0,0.00475204]
[1729518244662,0.074012,67580.0,67570.0,0.00475204]
[1729518244868,0.074017,67576.0,67571.0,0.3608]
[1729518245067,0.074012,67580.0,67578.0,0.074014]
[1729518245270,0.3608,67581.0,67578.0,0.00475204]
[1729518245457,0.3608,67581.0,67580.0,0.074012]
[1729518245866,0.01821399,67585.0,67580.0,0.36555204]
[1729518246168,0.02027929,67590.0,67580.0,0.36555204]
[1729518246367,0.00222024,67590.0,67589.0,0.074002]
[1729518246558,0.00222024,67590.0,67589.0,0.29063404]
[1729518246867,0.43478,67610.0,67602.0,0.073987]
[1729518247167,1.01015,67615.0,67602.0,0.073987]
[1729518247168,1.01091,67615.0,67602.0,0.3608]
[1729518247369,0.07398,67610.0,67605.0,0.073984]
[1729518247562,1.02823275,67615.0,67610.0,0.073979]
[1729518247563,0.073975,67614.0,67610.0,0.073979]
[1729518247872,1.01091,67615.0,67609.0,0.3608]
[1729518248062,1.01091,67615.0,67611.0,0.2210342]
[1729518248063,1.01015,67615.0,67611.0,0.2210342]
[1729518248266,1.01015,67615.0,67610.0,0.15193972]
[1729518248576,0.073979,67610.0,67609.0,0.00475204]
[1729518248796,0.073979,67610.0,67602.0,0.001]
[1729518249072,0.062987,67603.0,67602.0,0.002]
[1729518249457,0.72236,67606.0,67602.0,0.00675204]
[1729518249669,0.073987,67603.0,67602.0,0.00575204]
[1729518250267,0.073987,67603.0,67602.0,0.00675204]
[1729518250466,0.00088,67606.0,67602.0,0.00575204]
[1729518250670,1.01015,67615.0,67604.0,0.073985]
[1729518250671,0.073978,67611.0,67604.0,0.073985]
[1729518250977,1.01091,67615.0,67605.0,0.22241052]
[1729518251162,0.073979,67610.0,67605.0,0.22241052]
[1729518251362,1.084924,67615.0,67610.0,0.073978]
[1729518251572,1.084924,67615.0,67611.0,0.073978]
[1729518251573,1.01015,67615.0,67611.0,0.073978]
[1729518251874,1.01015,67615.0,67609.0,0.22193532]
[1729518252088,1.01015,67615.0,67613.0,0.073976]
[1729518252268,1.01015,67615.0,67613.0,0.07872804]
[1729518252463,0.434775,67614.0,67613.0,0.00475204]
[1729518252666,0.073975,67614.0,67613.0,0.00475204]
[1729518253274,0.073975,67614.0,67613.0,0.00575204]
[1729518254273,0.073975,67614.0,67607.0,0.36768752]
[1729518254463,0.073978,67612.0,67607.0,0.36768752]
[1729518254969,1.01015,67615.0,67607.0,0.29370552]
[1729518254970,0.073981,67608.0,67607.0,0.29370552]
[1729518255779,0.073981,67608.0,67607.0,0.29470552]
[1729518256374,1.01015,67615.0,67607.0,0.36868652]
[1729518256375,0.073978,67612.0,67607.0,0.36868652]
[1729518256799,0.073978,67612.0,67607.0,0.29470552]
[1729518256985,1.01091,67615.0,67607.0,0.29470552]
[1729518257187,0.001,67614.0,67607.0,0.29570552]
[1729518257372,0.001,67614.0,67612.0,0.073977]
[1729518257771,1.01091,67615.0,67612.0,0.073977]
[1729518257971,0.002,67612.0,67607.0,0.29570552]
[1729518258178,0.002,67612.0,67610.0,0.073979]
[1729518258375,0.002,67612.0,67611.0,0.073978]
[1729518258768,0.002,67614.0,67612.0,0.001]
[1729518258966,0.002,67614.0,67613.0,0.434776]
[1729518259186,0.58103,67615.0,67614.0,0.073975]
[1729518259386,0.58015,67615.0,67614.0,0.729415]
[1729518259682,0.58015,67615.0,67614.0,0.95203635]
[1729518259862,0.13085,67615.0,67614.0,0.95203635]
[1729518260475,0.13085,67615.0,67614.0,2.16630135]
[1729518260777,0.13085,67615.0,67614.0,0.729415]
[1729518261276,0.13185,67615.0,67614.0,0.729415]
[1729518261478,0.13185,67615.0,67614.0,0.95070167]
[1729518261668,0.13185,67615.0,67614.0,0.73894167]
[1729518261874,0.13185,67615.0,67614.0,0.95166167]
[1729518262385,0.13185,67615.0,67614.0,0.50798167]
[1729518262681,0.13185,67615.0,67614.0,0.95166167]
[1729518263471,0.13185,67615.0,67614.0,0.87768667]
[1729518263671,0.3608,67633.0,67614.0,0.87768667]
[1729518263672,0.3608,67633.0,67625.0,0.073961]
[1729518263878,0.3608,67633.0,67614.0,0.87768667]
[1729518263879,0.073963,67625.0,67624.0,0.3608]
[1729518264276,0.073955,67632.0,67616.0,0.22262434]
[1729518264482,0.3792642,67633.0,67614.0,0.21272]
[1729518264483,0.073967,67621.0,67620.0,0.073968]
[1729518264781,0.3792642,67633.0,67617.0,0.43355375]
[1729518264978,0.5057,67643.0,67628.0,0.3608]
[1729518265173,0.5057,67643.0,67634.0,0.073952]
[1729518265174,0.073952,67635.0,67634.0,0.073952]
[1729518265377,0.1441,67643.0,67628.0,0.3608]
[1729518265378,0.073947,67640.0,67635.0,0.073952]
[1729518265682,0.073907,67676.0,67635.0,0.073952]
[1729518265683,0.07392,67665.0,67635.0,0.95382842]
[1729518265885,0.073934,67652.0,67651.0,0.3608]
[1729518266080,0.3608,67665.0,67651.0,0.3608]
[1729518266275,0.37937754,67665.0,67651.0,0.3608]
[1729518266474,0.37937754,67665.0,67657.0,0.28695348]
[1729518266677,0.37937754,67665.0,67655.0,0.21384]
[1729518266878,0.073922,67663.0,67657.0,0.073928]
[1729518267182,0.3608,67665.0,67655.0,0.21384]
[1729518267382,0.073924,67661.0,67657.0,0.073928]
[1729518267573,0.3608,67665.0,67652.0,0.3608]
[1729518267775,0.3608,67659.0,67653.0,0.2138]
[1729518267979,0.073916,67668.0,67663.0,0.073921]
[1729518268175,0.073916,67668.0,67664.0,0.43472]
[1729518268375,0.073919,67666.0,67664.0,0.3608]
[1729518268593,0.00221737,67670.0,67664.0,0.3608]
[1729518268883,0.073916,67668.0,67665.0,0.073918]
[1729518269192,0.073915,67669.0,67664.0,0.434719]
[1729518269390,0.073915,67669.0,67666.0,0.073917]
[1729518269591,0.00221737,67670.0,67667.0,0.073916]
[1729518269888,0.00221737,67670.0,67664.0,0.3618]
[1729518270087,0.00221737,67670.0,67669.0,0.073914]
[1729518270288,0.00221737,67670.0,67669.0,0.287674]
[1729518271291,0.28431724,67684.0,67679.0,0.073903]
[1729518271491,0.28431724,67684.0,67683.0,0.3608]
[1729518271492,0.21421524,67684.0,67683.0,0.3608]
[1729518271695,0.07611524,67684.0,67683.0,0.3608]
[1729518271988,0.07611524,67684.0,67669.0,0.002]
[1729518271989,0.44545724,67684.0,67669.0,0.002]
[1729518272190,0.434713,67670.0,67669.0,0.002]
[1729518272387,0.434713,67670.0,67669.0,0.001]
[1729518272587,0.073919,67666.0,67664.0,0.14313043]
[1729518272790,0.073919,67665.0,67647.0,0.13786]
[1729518272979,0.07393,67655.0,67645.0,0.21372]
[1729518273187,0.3608,67656.0,67645.0,0.21372]
[1729518273391,0.3608,67656.0,67643.0,0.435622]
[1729518273600,0.3608,67650.0,67644.0,0.21372]
[1729518273891,0.3608,67650.0,67638.0,0.073948]
[1729518274090,0.073945,67641.0,67638.0,0.073948]
[1729518274284,0.073945,67641.0,67637.0,0.00221759]
[1729518274285,0.3608,67650.0,67639.0,0.21372]
[1729518274482,0.3608,67644.0,67639.0,0.21372]
[1729518274683,0.073946,67640.0,67637.0,0.07616659]
[1729518274899,0.073946,67640.0,67637.0,0.28988659]
[1729518275089,0.3608,67644.0,67637.0,0.21593759]
[1729518275281,0.3608,67644.0,67641.0,0.073945]
[1729518275482,0.434742,67644.0,67641.0,0.073945]
[1729518275693,0.3608,67644.0,67642.0,0.073943]
[1729518275989,0.3608,67644.0,67643.0,0.073943]
[1729518276692,0.3608,67644.0,67639.0,0.21372]
[1729518276693,0.073946,67640.0,67639.0,0.001]
[1729518276881,0.073964,67624.0,67619.0,0.3608]
[1729518277189,0.87582,67643.0,67614.0,0.00221877]
[1729518277190,0.3608,67627.0,67614.0,0.00221877]
[1729518277395,0.073973,67615.0,67614.0,0.00221877]
[1729518277690,0.3608,67617.0,67600.0,0.21372]
[1729518277990,0.3608,67617.0,67603.0,0.073987]
[1729518278198,0.073983,67607.0,67603.0,0.073986]
[1729518278385,0.073983,67607.0,67599.0,0.3608]
[1729518278690,0.3608,67611.0,67601.0,0.22110794]
[1729518278893,0.3608,67611.0,67601.0,0.29509694]
[1729518279082,0.3608,67611.0,67600.0,0.014]
[1729518279279,0.073989,67601.0,67600.0,0.014]
[1729518280284,0.073989,67601.0,67591.0,0.21376]
[1729518280487,0.434779,67611.0,67592.0,0.073998]
[1729518280488,0.14796,67609.0,67592.0,0.073998]
[1729518280689,0.3608,67604.0,67600.0,0.005]
[1729518280991,0.001,67601.0,67600.0,0.07899]
[1729518281391,0.001,67601.0,67600.0,0.07399]
[1729518281590,0.001,67601.0,67596.0,0.3608]
[1729518281783,0.001,67601.0,67596.0,0.434794]
[1729518282094,0.3608,67605.0,67592.0,0.22776]
[1729518282288,0.3608,67605.0,67592.0,0.014]
[1729518282289,0.3608,67599.0,67592.0,0.014]
[1729518282489,0.434798,67593.0,67592.0,0.014]
[1729518283399,0.073997,67594.0,67592.0,0.014]
[1729518283592,0.3608,67600.0,67592.0,0.014]
[1729518283793,0.073992,67598.0,67592.0,0.014]
[1729518283986,0.3608,67600.0,67592.0,0.014]
[1729518284181,0.073998,67593.0,67592.0,0.028]
[1729518284887,0.09191031,67607.0,67584.0,0.5746]
[1729518284888,0.3608,67594.0,67584.0,0.435607]
[1729518285089,0.3608,67594.0,67587.0,0.074004]
[1729518285291,0.3608,67606.0,67590.0,0.3608]
[1729518285595,0.073986,67604.0,67592.0,0.002]
[1729518285986,0.073986,67604.0,67599.0,0.073991]
[1729518286496,0.3608,67601.0,67592.0,0.003]
[1729518286826,0.3608,67601.0,67592.0,0.001]
[1729518286827,0.073998,67593.0,67592.0,0.001]
[1729518286983,0.3608,67601.0,67589.0,0.21384]
[1729518287691,0.074001,67590.0,67589.0,0.13999348]
[1729518287898,0.074003,67588.0,67587.0,0.014]
[1729518288104,0.074003,67588.0,67584.0,0.3608]
[1729518288286,0.074006,67586.0,67584.0,0.074007]
[1729518288800,0.074006,67586.0,67585.0,0.074006]
[1729518288995,0.3658,67601.0,67585.0,0.22129094]
[1729518289295,0.3658,67601.0,67589.0,0.074001]
[1729518289296,0.073999,67592.0,67589.0,0.074001]
[1729518290398,0.073999,67592.0,67585.0,0.21384]
[1729518290399,0.3608,67601.0,67585.0,0.21384]
[1729518290585,0.3608,67601.0,67584.0,0.016]
[1729518290902,0.074001,67590.0,67589.0,0.005]
[1729518291585,0.3608,67595.0,67585.0,0.014]
[1729518291788,0.074,67591.0,67589.0,0.074001]
[1729518292100,0.073998,67593.0,67587.0,0.3608]
[1729518292292,0.3608,67595.0,67592.0,0.073999]
[1729518292499,0.3608,67595.0,67594.0,0.073996]
[1729518292795,0.001,67601.0,67594.0,0.073996]
[1729518292998,0.001,67601.0,67600.0,0.07399]
[1729518293296,0.00221979,67604.0,67595.0,0.3608]
[1729518293598,0.00221979,67604.0,67596.0,0.22119523]
[1729518293997,0.003,67601.0,67596.0,0.22119523]
[1729518294190,0.003,67601.0,67600.0,0.07399]
[1729518294590,0.003,67601.0,67600.0,0.29466224]
[1729518294800,0.00221979,67604.0,67600.0,0.22067224]
[1729518295005,0.00821979,67604.0,67603.0,0.073987]
[1729518296388,0.00221979,67604.0,67603.0,0.073987]
[1729518296807,0.00221979,67604.0,67600.0,0.21936]
[1729518297009,0.00221979,67604.0,67603.0,0.073987]
[1729518297394,0.00821979,67604.0,67603.0,0.074987]
[1729518297600,0.01921979,67604.0,67603.0,0.075987]
[1729518297894,0.01921979,67604.0,67603.0,0.002]
[1729518297895,0.09320579,67604.0,67603.0,0.002]
[1729518299106,0.07396,67628.0,67603.0,0.22261655]
[1729518299403,0.3608,67632.0,67603.0,0.22261655]
[1729518299404,0.3608,67623.0,67610.0,0.073979]
[1729518299706,0.073976,67613.0,67607.0,0.3608]
[1729518299904,0.3608,67623.0,67607.0,0.3608]
[1729518300100,0.073985,67605.0,67603.0,0.002]
[1729518300310,0.3608,67611.0,67603.0,0.002]
[1729518300709,0.07398,67610.0,67603.0,0.002]
[1729518300911,0.073973,67616.0,67612.0,0.073977]
[1729518301103,0.073966,67622.0,67620.0,0.073967]
[1729518301412,0.013,67623.0,67622.0,0.073966]
[1729518301600,0.073947,67639.0,67634.0,0.073952]
[1729518301912,0.3608,67640.0,67621.0,1.16126691]
[1729518301913,0.07395,67637.0,67629.0,0.3608]
[1729518302120,0.073957,67630.0,67622.0,0.22146285]
[1729518302320,0.073957,67630.0,67609.0,0.3608]
[1729518302321,0.073968,67621.0,67609.0,0.3608]
[1729518302613,0.3608,67611.0,67601.0,0.21836]
[1729518302911,0.002,67610.0,67603.0,0.001]
[1729518303410,0.002,67610.0,67609.0,0.07398]
[1729518303797,0.002,67622.0,67609.0,0.2221352]
[1729518304197,0.3608,67615.0,67608.0,0.2221352]
[1729518304401,0.3608,67616.0,67607.0,0.005]
[1729518304608,0.073963,67625.0,67615.0,0.3608]
[1729518304908,0.00221879,67627.0,67622.0,0.073965]
[1729518305111,0.00221879,67627.0,67616.0,0.073972]
[1729518305296,0.00221879,67627.0,67615.0,0.3608]
[1729518305496,0.00221879,67627.0,67626.0,0.073961]
[1729518306597,0.00221879,67627.0,67622.0,0.073965]
[1729518306909,0.00221879,67627.0,67615.0,0.3608]
[1729518306910,0.3608,67625.0,67615.0,0.3608]
[1729518307111,0.3608,67625.0,67609.0,0.40002]
[1729518307408,0.3608,67625.0,67616.0,0.001]
[1729518307409,0.073966,67622.0,67616.0,0.001]
[1729518307719,0.3608,67625.0,67616.0,0.001]
[1729518307720,0.073968,67621.0,67616.0,0.001]
[1729518307911,0.3608,67625.0,67616.0,0.001]
[1729518308104,0.073971,67617.0,67616.0,0.001]
[1729518308600,0.073971,67617.0,67613.0,0.073975]
[1729518308801,0.3608,67618.0,67608.0,0.21832]
[1729518309007,0.073974,67615.0,67608.0,0.21832]
[1729518309409,0.073974,67615.0,67611.0,0.073977]
[1729518309612,0.3608,67618.0,67608.0,0.21832]
[1729518309810,0.3608,67618.0,67617.0,0.073971]
[1729518310003,0.03623951,67618.0,67617.0,0.073971]
[1729518310212,0.11020951,67618.0,67608.0,0.21832]
[1729518310406,0.07397,67618.0,67608.0,0.21832]
[1729518310607,0.3608,67625.0,67610.0,0.073978]
[1729518310806,0.3608,67625.0,67609.0,0.22220955]
[1729518310807,0.073966,67623.0,67616.0,0.001]
[1729518311014,0.3638,67625.0,67616.0,0.001]
[1729518311311,0.073971,67617.0,67616.0,0.001]
[1729518311518,0.003,67618.0,67608.0,0.21832]
[1729518311716,0.003,67618.0,67617.0,0.073971]
[1729518312107,0.3638,67625.0,67624.0,0.073964]
[1729518312506,0.3638,67625.0,67624.0,0.434764]
[1729518312507,0.003,67625.0,67624.0,0.434764]
[1729518312702,0.00221879,67627.0,67626.0,0.073961]
[1729518313714,0.00221821,67643.0,67642.0,0.073944]
[1729518314012,0.00221821,67643.0,67642.0,0.434744]
[1729518314217,0.1868,67661.0,67642.0,0.58178908]
[1729518314413,0.036222,67660.0,67642.0,0.58178908]
[1729518314611,0.036222,67660.0,67636.0,0.3608]
[1729518314612,0.3608,67654.0,67644.0,0.3608]
[1729518314914,0.260724,67661.0,67645.0,0.22172334]
[1729518315112,0.03621956,67660.0,67650.0,0.3608]
[1729518315309,0.073918,67666.0,67661.0,0.073923]
[1729518315504,0.073918,67666.0,67659.0,0.3608]
[1729518315705,0.002,67660.0,67659.0,0.073925]
[1729518317315,0.002,67660.0,67659.0,0.001]
[1729518317616,0.073934,67651.0,67650.0,0.001]
[1729518317813,0.073935,67650.0,67645.0,0.07394]
[1729518318016,0.3608,67654.0,67640.0,0.14443348]
[1729518318202,0.073942,67644.0,67640.0,0.14443348]
[1729518318408,0.073944,67643.0,67640.0,0.14443348]
[1729518318605,0.3608,67647.0,67640.0,0.14443348]
[1729518318822,0.3608,67647.0,67635.0,0.57992]
[1729518319009,0.3608,67647.0,67635.0,0.57904]
[1729518319208,0.073947,67639.0,67635.0,0.3608]
[1729518319406,0.073945,67642.0,67637.0,0.073949]
[1729518319616,0.073944,67642.0,67639.0,0.073947]
[1729518319823,0.073944,67642.0,67635.0,0.3608]
[1729518319824,0.003,67644.0,67635.0,0.3608]